bitfinex/quotes_ETHUSD_20241203
["timestamp","ask_amount","ask_price","bid_price","bid_amount"]
[1733244936178,0.29345804,3558.8,3558.6,0.2]
[1733244936685,0.29345804,3558.8,3558.4,0.2]
[1733244936876,0.29345804,3558.8,3558.7,0.2]
[1733244938375,0.29345804,3558.8,3558.7,3.392017]
[1733244938674,0.29345804,3558.8,3558.7,0.582007]
[1733244939047,0.29345804,3558.8,3558.7,0.2]
[1733244939684,0.29345804,3558.8,3558.7,1.0102]
[1733244940042,0.29345804,3558.8,3558.7,3.83450444]
[1733244940242,0.29345804,3558.8,3558.7,1.0102]
[1733244940552,0.29345804,3558.8,3558.7,3.82021]
[1733244940866,0.29345804,3558.8,3558.7,1.392221]
[1733244941071,0.29345804,3558.8,3558.7,1.0102]
[1733244941541,0.29345804,3558.8,3558.7,3.82021]
[1733244942015,0.8295,3559.7,3558.7,3.82021]
[1733244942151,1.0846631,3559.7,3558.7,3.82021]
[1733244942491,0.29342278,3559.4,3559.2,0.2]
[1733244944677,2.80955,3559.3,3559.0,0.2]
[1733244945581,2.80971,3559.1,3558.8,0.2]
[1733244945821,0.771,3559.0,3558.8,0.2]
[1733244946676,0.55,3558.9,3558.3,0.2]
[1733244947012,2.81019,3558.5,3558.3,0.2]
[1733244947515,0.5851271,3558.7,3558.1,0.2]
[1733244947719,2.81018,3558.5,3558.1,0.2]
[1733244947867,0.55,3558.7,3558.1,0.2]
[1733244948069,2.81014,3558.6,3557.9,0.2]
[1733244948306,2.81051,3558.1,3557.9,0.2]
[1733244948812,2.80754139,3558.1,3557.9,0.2]
[1733244949921,0.55,3558.2,3557.9,0.2]
[1733244950130,0.40896451,3558.4,3558.2,0.2]
[1733244950305,0.25566685,3558.3,3558.2,0.2]
[1733244950623,0.25566685,3558.5,3558.4,0.2]
[1733244950828,0.25566685,3558.9,3558.4,0.2]
[1733244951005,0.25566685,3558.8,3558.4,0.2]
[1733244951311,0.25566685,3558.7,3558.4,0.2]
[1733244951513,2.80988,3558.9,3558.4,0.2]
[1733244951674,3.06583945,3558.8,3558.4,0.2]
[1733244951877,0.25583945,3558.7,3558.4,0.2]
[1733244952085,0.25609163,3558.6,3558.4,0.2]
[1733244952271,0.25609163,3558.5,3558.4,0.2]
[1733244952726,0.95896451,3558.9,3558.4,0.2]
[1733244952872,0.25610791,3558.8,3558.4,0.2]
[1733244953073,0.25610791,3558.7,3558.4,0.2]
[1733244953321,0.25610791,3558.6,3558.4,0.58335022]
[1733244953498,0.25643096,3558.5,3558.4,0.58335022]
[1733244953688,0.25643096,3558.5,3558.4,0.2]
[1733244954319,0.25643096,3558.5,3558.4,2.81025]
[1733244954531,0.25643096,3558.5,3558.4,0.2]
[1733244955182,0.66777788,3558.5,3558.4,0.2]
[1733244956374,0.66777788,3558.5,3558.4,3.80685]
[1733244956621,0.25643096,3558.5,3558.4,4.468578]
[1733244957009,1.48700772,3559.4,3558.5,2.81016]
[1733244957195,1.27192848,3559.3,3558.9,0.2]
[1733244957378,0.84454354,3559.2,3558.9,0.2]
[1733244957578,0.84454354,3559.1,3558.9,0.2]
[1733244957819,0.66877874,3559.0,3558.9,0.2]
[1733244958020,0.8445474,3559.0,3558.9,0.2]
[1733244958390,3.35986,3558.9,3558.3,0.2]
[1733244958585,0.55,3558.7,3558.3,0.2]
[1733244958832,0.66877874,3558.6,3558.3,0.579146]
[1733244959048,0.66877874,3558.5,3558.3,0.579146]
[1733244959332,0.25722259,3558.4,3558.3,0.2]
[1733244959537,0.6688582,3558.4,3558.3,0.2]
[1733244960082,0.25722259,3558.4,3558.3,3.01033]
[1733244960524,0.72578271,3559.0,3558.6,0.2]
[1733244960726,0.84486219,3558.9,3558.6,0.2]
[1733244960933,0.84486219,3558.8,3558.6,0.2]
[1733244961227,0.66907948,3558.7,3558.3,0.2]
[1733244961428,1.97117948,3558.6,3558.1,0.2]
[1733244961723,0.66907948,3558.5,3558.1,0.2]
[1733244962024,4.02932948,3558.4,3557.9,0.2]
[1733244962226,0.55,3558.2,3557.9,0.2]
[1733244962411,0.55,3558.0,3557.9,0.2]
[1733244962584,1.21907948,3558.0,3557.9,0.2]
[1733244963888,0.66907948,3558.0,3557.9,0.2]
[1733244965355,0.66907948,3558.0,3557.7,0.2]
[1733244965669,0.42887524,3558.4,3557.7,0.2]
[1733244965670,1.46817948,3557.9,3557.7,0.2]
[1733244965957,0.84490268,3557.8,3557.7,0.2]
[1733244966256,0.66861527,3557.8,3557.7,0.2]
[1733244966466,0.8444455,3557.8,3557.7,0.2]
[1733244966634,0.66861527,3557.8,3557.7,0.99]
[1733244966839,0.25715972,3557.8,3557.7,3.8008]
[1733244967132,0.41147772,3558.5,3558.4,0.2]
[1733244967444,0.66867464,3558.5,3558.4,0.2]
[1733244969063,0.66867464,3558.5,3558.4,3.01025]
[1733244969367,0.66867464,3558.5,3558.4,3.82865]
[1733244969567,0.25719692,3558.5,3558.4,4.49398825]
[1733244970518,0.25719692,3558.5,3558.4,1.68373825]
[1733244970750,0.25719692,3558.5,3558.1,2.81041]
[1733244970751,0.66879079,3558.5,3558.1,0.2]
[1733244970946,0.66879079,3558.4,3558.3,0.2]
[1733244971262,0.66879079,3558.4,3557.8,0.7848]
[1733244971263,0.66879079,3558.4,3558.0,0.2]
[1733244971445,0.7715,3558.7,3557.8,0.9848]
[1733244971446,0.66897701,3558.3,3557.8,0.9848]
[1733244971644,0.84477618,3558.2,3557.8,0.2]
[1733244971946,0.66897701,3558.1,3557.8,0.2]
[1733244972173,0.25729885,3558.0,3557.8,0.2]
[1733244972333,0.25729885,3557.9,3557.8,0.2]
[1733244972555,0.66902699,3557.9,3557.8,0.2]
[1733244972869,0.96251599,3557.9,3557.8,0.2]
[1733244973035,0.66902699,3557.9,3557.8,3.81642]
[1733244973234,0.25729885,3557.9,3557.8,1.387342]
[1733244973434,0.25729885,3557.9,3557.8,0.2]
[1733244973634,0.6691494,3557.9,3557.5,0.2]
[1733244973837,0.84496859,3557.8,3557.5,0.2]
[1733244974077,0.6691494,3557.7,3557.5,0.2]
[1733244974224,0.6691494,3557.6,3557.5,0.2]
[1733244975470,0.6691494,3557.6,3557.5,3.01096]
[1733244975637,0.6691494,3557.6,3557.5,3.31207]
[1733244976055,0.25729885,3557.6,3557.5,3.31207]
[1733244976233,0.25729885,3557.6,3557.5,4.06637]
[1733244976429,0.46930166,3558.3,3558.2,3.0104]
[1733244976736,0.96244633,3558.3,3558.2,0.50104]
[1733244976958,0.96244633,3558.3,3558.0,0.2]
[1733244977275,0.66897621,3558.2,3558.0,0.2]
[1733244977428,0.66897621,3558.1,3557.6,0.2]
[1733244977755,3.47961621,3558.0,3557.6,0.2]
[1733244977949,0.25729854,3557.9,3557.6,0.2]
[1733244978254,0.25729854,3557.8,3557.6,0.2]
[1733244978431,0.25729854,3557.7,3557.6,0.2]
[1733244979258,0.41146825,3558.2,3557.8,0.2]
[1733244979582,0.25721413,3558.1,3558.0,0.2]
[1733244979747,0.25722776,3558.1,3558.0,0.2]
[1733244980066,0.25722776,3558.1,3556.9,3.0]
[1733244980067,3.06770776,3558.1,3557.6,0.2]
[1733244980233,0.66879218,3558.0,3557.6,0.2]
[1733244980432,4.27465218,3557.9,3557.6,0.2]
[1733244980635,0.25722776,3557.8,3557.6,0.2]
[1733244980961,3.06802776,3557.7,3557.6,0.2]
[1733244981151,0.55,3557.6,3556.8,0.2]
[1733244981354,0.7952,3557.2,3556.8,0.2]
[1733244981967,1.18446442,3557.7,3556.8,0.2]
[1733244982126,1.18446442,3557.7,3556.3,0.7743]
[1733244982127,0.66871132,3557.6,3557.2,0.2]
[1733244982331,0.2571469,3557.5,3557.2,0.2]
[1733244982577,0.7729,3557.7,3557.2,0.2]
[1733244982870,0.25715388,3557.6,3557.2,0.2]
[1733244983033,0.25715388,3557.5,3557.2,0.2]
[1733244983227,0.25715388,3557.4,3556.9,0.2]
[1733244983480,0.2571081,3557.3,3556.9,0.2]
[1733244983648,3.36109,3557.4,3556.9,0.2]
[1733244983858,0.25705621,3557.3,3556.9,0.2]
[1733244984041,0.55,3557.4,3556.9,0.2]
[1733244984368,0.2569777,3557.3,3557.1,0.2]
[1733244984681,0.25701753,3557.6,3557.4,0.2]
[1733244984969,1.22466442,3558.0,3556.0,0.3]
[1733244984970,0.8131,3558.0,3557.6,0.2]
[1733244985153,0.66858685,3557.9,3557.6,0.2]
[1733244985476,3.10381012,3558.3,3557.6,0.2]
[1733244985477,0.25702243,3557.8,3557.6,0.2]
[1733244985791,0.41156442,3558.1,3557.6,0.2]
[1733244986063,1.10657012,3558.3,3557.6,0.580693]
[1733244986282,2.81073,3557.8,3557.0,0.7761]
[1733244986459,2.81069,3557.9,3557.1,0.2]
[1733244986641,0.25699858,3557.8,3557.4,0.2]
[1733244986847,0.25699858,3557.7,3557.6,0.2]
[1733244987175,0.25699858,3557.7,3557.4,0.2]
[1733244987382,0.25699858,3557.7,3557.0,0.7761]
[1733244987383,0.41119773,3557.9,3557.6,0.2]
[1733244987676,0.41119773,3557.9,3557.2,2.81118]
[1733244987677,0.25708532,3557.8,3557.4,0.2]
[1733244987877,3.41132617,3558.1,3557.7,0.2]
[1733244987878,2.81057,3558.0,3557.7,0.2]
[1733244988078,0.25707805,3557.9,3557.2,0.2]
[1733244988285,0.25707805,3557.8,3557.4,0.2]
[1733244988444,0.43284663,3558.0,3557.4,0.2]
[1733244988445,0.25707805,3557.7,3557.4,0.2]
[1733244988646,0.25707805,3557.6,3557.4,3.011]
[1733244988840,0.29351978,3557.8,3557.7,0.2]
[1733244989079,0.55061447,3557.8,3557.7,0.2]
[1733244989381,0.55061447,3557.8,3557.7,0.582484]
[1733244989538,0.29351978,3557.8,3557.7,0.2]
[1733244990377,0.29351978,3557.8,3557.7,3.0108]
[1733244994112,0.25719778,3558.4,3558.3,3.01033]
[1733244994271,0.25719778,3558.4,3558.3,3.77173]
[1733244994455,0.29346245,3558.8,3558.7,3.01001]
[1733244994657,0.55063682,3558.8,3558.7,3.311011]
[1733244995108,0.29346245,3558.8,3558.7,4.133811]
[1733244996397,0.41148512,3559.8,3559.6,0.2]
[1733244996718,0.25702187,3559.7,3559.6,0.2]
[1733244997021,0.25702187,3559.7,3559.6,3.0093]
[1733244997312,0.25688309,3560.0,3559.9,3.83666]
[1733244997522,0.55022806,3560.3,3560.2,3.00883]
[1733244997807,0.29334497,3560.3,3560.2,3.00883]
[1733244997980,0.29334497,3560.3,3560.2,0.2]
[1733245004480,0.29334497,3560.3,3560.2,3.82483]
[1733245004680,0.7883,3561.6,3561.2,0.2]
[1733245005284,0.29325972,3561.5,3561.2,0.2]
[1733245006095,0.29325972,3561.5,3561.4,0.2]
[1733245009028,0.55,3561.4,3561.1,0.2]
[1733245009245,3.35789,3561.4,3561.1,0.2]
[1733245010410,0.55,3561.2,3560.9,0.2]
[1733245010607,0.55,3561.2,3560.7,0.2]
[1733245010819,2.80803,3561.3,3560.7,0.2]
[1733245010820,2.80812,3561.1,3560.7,0.2]
[1733245011021,0.55,3560.9,3560.3,0.2]
[1733245011330,3.35843,3560.7,3560.3,0.2]
[1733245011542,2.80859,3560.5,3560.3,0.2]
[1733245011692,0.55,3560.7,3560.3,0.2]
[1733245011693,2.80851,3560.6,3560.3,0.2]
[1733245012540,2.8086,3560.5,3560.0,0.2]
[1733245012729,0.55,3560.7,3560.3,0.2]
[1733245013038,3.35845,3560.7,3560.3,0.2]
[1733245013642,0.55,3560.7,3560.3,0.2]
[1733245013807,2.80868,3560.4,3560.2,0.2]
[1733245014136,2.80875,3560.3,3560.0,0.2]
[1733245014304,0.55,3560.7,3559.5,0.7569]
[1733245014305,2.80861,3560.5,3560.2,0.2]
[1733245014507,2.80861,3560.5,3559.5,0.7569]
[1733245014508,2.80868,3560.4,3560.0,0.2]
[1733245014729,0.58510904,3560.7,3559.8,0.2]
[1733245014892,0.55,3560.5,3559.8,0.2]
[1733245015093,0.55,3560.0,3559.3,0.2]
[1733245015429,0.7592,3559.8,3558.9,0.2]
[1733245015609,0.55,3559.4,3558.9,0.2]
[1733245016699,2.80942,3559.5,3558.9,0.2]
[1733245017036,0.55,3559.4,3558.9,0.2]
[1733245018154,0.55,3559.7,3559.2,0.2]
[1733245018321,0.80608274,3559.7,3559.2,0.2]
[1733245018523,3.35924,3559.7,3559.2,0.2]
[1733245018720,0.25608274,3559.6,3559.2,0.2]
[1733245018918,0.55,3559.7,3559.2,0.2]
[1733245019251,0.2560933,3559.6,3559.2,0.2]
[1733245019443,0.2560933,3559.6,3559.4,0.2]
[1733245019755,3.35909,3559.9,3559.4,0.9675]
[1733245019915,0.2560933,3559.8,3559.4,0.2]
[1733245020112,2.8093,3559.6,3559.2,0.2]
[1733245020340,0.2560933,3559.5,3559.4,0.2]
[1733245020659,0.29338802,3559.5,3559.4,0.7675]
[1733245020949,2.80953,3559.4,3559.0,0.2]
[1733245021148,0.2560933,3559.3,3559.0,0.2]
[1733245021448,0.29338802,3559.5,3559.0,0.2]
[1733245021614,1.10434429,3559.4,3558.7,0.2]
[1733245021950,1.21616601,3559.3,3558.5,0.2]
[1733245022162,1.21616601,3559.3,3557.1,3.4810126]
[1733245022163,3.2810126,3558.9,3558.1,0.2]
[1733245022362,2.81023,3558.5,3558.2,0.2]
[1733245022649,0.25642462,3558.4,3558.2,0.2]
[1733245022809,0.25642085,3558.4,3558.2,0.2]
[1733245023214,3.35985,3558.9,3558.2,0.2]
[1733245023507,0.25656922,3558.3,3558.2,3.8223]
[1733245023714,0.25656922,3558.9,3558.7,0.2]
[1733245023915,0.41051075,3559.4,3559.0,0.2]
[1733245024127,0.25660009,3559.3,3559.0,0.2]
[1733245024321,0.25660009,3559.2,3559.0,0.2]
[1733245024525,0.25660009,3559.1,3559.0,0.2]
[1733245024960,0.25660009,3559.1,3558.8,0.8119]
[1733245025127,0.25660009,3559.0,3558.9,0.2]
[1733245025328,0.25660009,3559.2,3558.9,0.2]
[1733245025566,0.55,3559.4,3558.9,0.2]
[1733245025868,0.29338802,3559.5,3559.1,0.2]
[1733245026732,0.29338802,3559.5,3559.3,0.2]
[1733245027752,0.55015058,3559.5,3559.3,0.2]
[1733245027951,0.8243,3559.3,3558.8,0.2]
[1733245028263,0.55,3559.1,3558.8,0.2]
[1733245028463,0.25676256,3559.0,3558.8,0.2]
[1733245028828,0.25676256,3559.0,3558.4,0.2]
[1733245029166,0.25676256,3558.9,3558.7,0.2]
[1733245029467,0.25654546,3558.8,3558.7,0.2]
[1733245029665,0.25654546,3559.0,3558.7,0.2]
[1733245029967,0.25654271,3559.0,3558.7,0.2]
[1733245030148,0.55,3559.0,3558.7,0.2]
[1733245030469,0.55,3559.0,3558.4,2.81021]
[1733245030470,3.61638271,3559.0,3558.4,0.2]
[1733245030629,0.55,3558.8,3558.2,0.2]
[1733245031166,0.55,3558.6,3558.2,0.2]
[1733245031383,0.2565075,3558.9,3558.6,0.2]
[1733245031542,0.2565075,3559.1,3558.6,0.2]
[1733245031728,0.25652721,3559.0,3558.8,0.2]
[1733245031936,0.70383156,3559.5,3559.3,0.2]
[1733245032162,0.25654682,3559.4,3559.3,0.2]
[1733245032375,0.29338802,3559.5,3559.3,1.0158]
[1733245032552,0.29338802,3559.5,3559.4,2.82374217]
[1733245032881,0.29338802,3559.5,3559.4,3.48865573]
[1733245033034,0.29338802,3559.5,3559.4,3.47437822]
[1733245034192,0.29338802,3559.5,3559.4,0.66491822]
[1733245035578,0.29338802,3559.5,3559.4,3.47437822]
[1733245036898,0.29338802,3559.5,3559.4,0.66491822]
[1733245037091,0.29338802,3559.5,3559.3,0.2]
[1733245037587,0.25717138,3559.4,3559.3,0.2]
[1733245037794,0.25717138,3559.4,3559.1,0.2]
[1733245037995,0.29338802,3559.5,3559.1,0.2]
[1733245038289,0.2570843,3559.4,3559.1,0.2]
[1733245038497,0.29338802,3559.5,3559.1,0.2]
[1733245038498,0.2570843,3559.3,3559.1,0.2]
[1733245038784,0.2570843,3559.2,3559.1,0.2]
[1733245039161,0.29338802,3559.5,3559.1,0.2]
[1733245039162,0.41060783,3559.4,3559.1,0.2]
[1733245039493,0.25738845,3559.3,3559.1,0.2]
[1733245039693,0.25738845,3559.2,3559.1,0.2]
[1733245040394,0.8121,3558.8,3557.9,0.2]
[1733245040556,0.55,3558.5,3557.6,0.2]
[1733245040751,0.55,3558.3,3557.6,0.2]
[1733245040991,0.66799628,3558.2,3557.6,0.2]
[1733245041167,0.80738845,3558.1,3557.6,0.2]
[1733245041355,0.25738845,3558.0,3557.6,0.2]
[1733245041554,0.25738845,3557.9,3557.6,0.2]
[1733245041765,0.25738845,3557.8,3557.6,0.2]
[1733245042087,0.55,3558.1,3557.6,0.2]
[1733245042310,1.08149552,3558.0,3557.7,0.2]
[1733245042455,0.25749552,3557.9,3557.7,0.2]
[1733245042798,0.25749552,3557.8,3557.7,0.2]
[1733245043095,0.55,3558.1,3557.7,0.2]
[1733245043251,0.25756924,3558.0,3557.9,0.2]
[1733245043647,0.29348249,3558.2,3558.1,0.2]
[1733245043894,0.55106804,3558.2,3558.1,0.2]
[1733245044050,0.29348249,3558.2,3558.1,0.2]
[1733245044452,0.55116324,3558.2,3558.1,0.2]
[1733245044686,0.29348249,3558.2,3558.1,0.2]
[1733245044852,0.55113038,3558.2,3558.1,0.2]
[1733245045054,0.55113038,3558.2,3557.6,0.754]
[1733245045055,0.55113038,3558.2,3557.9,0.2]
[1733245045249,0.29348249,3558.2,3557.9,0.2]
[1733245045496,0.29348249,3558.2,3556.5,3.0117]
[1733245045497,0.80771662,3558.1,3557.7,0.2]
[1733245045700,0.98807366,3558.1,3557.7,0.2]
[1733245045903,2.81076,3557.8,3557.4,0.2]
[1733245046056,0.25770233,3557.7,3557.4,0.2]
[1733245046394,0.25770233,3557.6,3557.5,0.2]
[1733245046552,0.25770233,3557.6,3556.8,0.8303]
[1733245046753,2.81082,3557.7,3557.2,0.2]
[1733245046954,0.25759683,3557.6,3557.5,0.2]
[1733245047150,0.25759683,3557.6,3557.2,0.2]
[1733245047406,0.55,3557.8,3557.2,0.2]
[1733245047612,2.81096,3557.6,3556.8,0.8303]
[1733245047845,2.81096,3557.6,3555.5,3.37953744]
[1733245047846,3.82953744,3557.6,3556.7,0.2]
[1733245048017,3.27953744,3557.2,3556.3,0.2]
[1733245048217,0.7832,3557.0,3556.3,0.2]
[1733245048418,0.55,3557.1,3556.7,0.2]
[1733245048620,0.25730818,3557.2,3556.9,0.2]
[1733245048835,0.55,3557.5,3556.9,0.2]
[1733245049038,0.25730659,3557.4,3556.9,0.2]
[1733245049249,0.25730659,3557.3,3556.9,0.2]
[1733245049465,0.25718523,3557.4,3556.9,0.2]
[1733245049752,0.55,3557.5,3556.9,0.2]
[1733245049949,0.55,3557.3,3556.9,0.2]
[1733245050248,0.80710661,3557.3,3556.9,0.2]
[1733245050451,0.55,3557.4,3556.9,0.2]
[1733245050650,0.25711055,3557.4,3556.9,0.2]
[1733245050852,3.61823055,3557.3,3556.7,0.2]
[1733245051043,0.25711055,3557.2,3556.7,0.2]
[1733245051245,0.25711055,3557.1,3556.7,0.2]
[1733245051449,3.36112,3557.3,3556.7,0.2]
[1733245051654,0.25688367,3557.2,3556.7,0.2]
[1733245051828,0.25684769,3557.1,3556.7,0.2]
[1733245052024,0.55,3557.3,3556.7,0.2]
[1733245052389,0.25683513,3557.2,3556.7,0.2]
[1733245052665,0.25683513,3557.1,3556.8,0.2]
[1733245052848,0.25683513,3557.0,3556.8,0.2]
[1733245053051,3.77200631,3557.4,3556.8,0.2]
[1733245053228,0.55,3557.2,3556.8,0.2]
[1733245053428,0.25673624,3557.1,3556.8,0.2]
[1733245053624,0.25673624,3557.0,3556.8,0.2]
[1733245053827,1.61433624,3556.9,3556.3,0.2]
[1733245054026,0.25673624,3556.8,3556.3,0.2]
[1733245054226,1.3576,3556.9,3556.3,0.2]
[1733245054460,0.2566255,3556.8,3556.3,0.2]
[1733245054662,0.55,3556.9,3556.4,0.785]
[1733245054826,0.55,3557.0,3556.4,0.785]
[1733245055771,0.55,3556.8,3556.4,0.785]
[1733245056374,0.29356418,3556.7,3556.4,0.785]
[1733245056524,0.29356418,3556.7,3555.7,0.2]
[1733245056525,0.55,3556.5,3555.7,0.2]
[1733245056730,0.55,3556.5,3555.5,0.8188]
[1733245056731,0.55,3556.3,3555.9,0.2]
[1733245057228,3.29356418,3556.7,3556.1,0.2]
[1733245057229,0.29356418,3556.7,3556.1,0.2]
[1733245057428,0.29356418,3556.7,3554.8,3.25295383]
[1733245057429,0.29356418,3556.7,3556.6,0.2]
[1733245058335,0.29356418,3556.7,3556.6,1.0138]
[1733245059561,0.29356418,3556.7,3556.6,1.02813297]
[1733245059906,0.29356418,3556.7,3556.6,7.55623704]
[1733245066921,0.29356418,3556.7,3556.6,4.74456704]
[1733245067121,0.29356418,3556.7,3556.6,1.74456704]
[1733245067323,0.29356418,3556.7,3556.6,6.82547]
[1733245067828,0.29356418,3556.7,3556.6,1.0138]
[1733245068170,0.29356418,3556.7,3556.6,0.2]
[1733245069736,0.29356418,3556.7,3556.1,0.7878]
[1733245070070,0.55,3556.6,3556.0,0.2]
[1733245070233,0.91551442,3556.6,3556.0,0.2]
[1733245070380,0.91551442,3556.6,3556.2,0.2]
[1733245070381,0.7701,3556.5,3556.2,0.2]
[1733245072482,0.25758943,3556.4,3556.2,0.2]
[1733245072829,0.25758943,3556.3,3556.2,0.2]
[1733245073133,0.7701,3556.5,3556.2,0.2]
[1733245073283,0.25756806,3556.4,3556.2,0.2]
[1733245073489,0.2935812,3556.3,3556.2,0.2]
[1733245073917,0.2935812,3556.3,3556.2,0.501207]
[1733245074480,0.2935812,3556.3,3556.2,3.83599]
[1733245075184,0.2935812,3556.3,3556.2,6.83599]
[1733245078212,0.2935812,3556.3,3556.2,10.11552744]
[1733245078412,0.2935812,3556.3,3556.2,6.83599]
[1733245081205,0.2935812,3556.3,3556.2,6.63599]
[1733245081424,0.2935812,3556.3,3556.2,6.83599]
[1733245081735,0.2935812,3556.3,3556.2,6.01199]
[1733245081894,0.2935812,3556.3,3556.2,0.2]
[1733245082836,0.2935812,3556.3,3555.8,0.2]
[1733245083144,0.8284,3556.2,3555.8,0.2]
[1733245084241,0.8284,3556.2,3555.3,0.2]
[1733245084242,2.81217,3556.0,3555.3,0.2]
[1733245084455,0.8284,3556.0,3555.3,0.2]
[1733245084603,0.8284,3556.0,3555.6,0.2]
[1733245084940,0.8284,3556.0,3555.6,3.01246]
[1733245085197,0.25768285,3555.9,3555.6,0.2]
[1733245085316,0.8284,3556.0,3555.6,0.2]
[1733245085649,0.25758328,3555.9,3555.6,0.2]
[1733245085855,0.41212036,3556.2,3556.0,0.2]
[1733245086147,0.2935812,3556.3,3556.0,0.2]
[1733245086320,0.25759834,3556.2,3556.0,0.2]
[1733245086520,0.25759834,3556.1,3556.0,0.2]
[1733245086844,0.2935812,3556.3,3556.0,0.2]
[1733245087054,0.25756191,3556.2,3556.0,0.2]
[1733245087238,0.2935812,3556.3,3556.0,0.2]
[1733245087414,0.2935812,3556.3,3556.2,3.01199]
[1733245087728,0.2935812,3556.3,3556.2,4.379805]
[1733245088663,0.2935812,3556.3,3556.2,10.67367854]
[1733245088955,0.2935812,3556.3,3556.2,10.65934244]
[1733245089255,0.2935812,3556.3,3556.2,7.379805]
[1733245089607,0.2935812,3556.3,3556.2,10.65934244]
[1733245090448,0.2935812,3556.3,3556.2,7.379805]
[1733245091447,0.2935812,3556.3,3556.2,10.65934244]
[1733245094178,0.2935812,3556.3,3556.2,7.379805]
[1733245095188,1.2e-06,3556.3,3556.2,10.65934244]
[1733245095396,0.25801341,3557.7,3557.4,2.811]
[1733245095565,0.804,3557.8,3557.4,2.811]
[1733245095766,0.25801731,3557.7,3557.6,0.2]
[1733245095954,0.2580202,3557.7,3557.6,3.01085]
[1733245096155,0.29351999,3557.7,3557.6,3.311935]
[1733245096592,0.7705,3558.4,3557.8,2.81069]
[1733245096844,0.67088191,3558.3,3557.8,2.81069]
[1733245097020,0.25803445,3558.2,3557.4,2.81101]
[1733245097331,0.25791428,3558.1,3557.7,0.2]
[1733245097502,1.02841428,3558.0,3557.7,0.2]
[1733245097717,0.25791428,3557.9,3557.7,0.2]
[1733245097925,0.25791428,3557.8,3557.3,0.2]
[1733245098093,0.7705,3557.6,3557.0,0.2]
[1733245098438,0.2579142,3557.5,3557.0,0.2]
[1733245098737,0.2579142,3557.4,3557.0,0.2]
[1733245098896,0.7705,3557.6,3557.0,0.2]
[1733245099091,0.25790372,3557.5,3557.3,0.2]
[1733245099294,0.7705,3557.6,3557.3,0.2]
[1733245099602,0.14412617,3558.1,3557.5,0.2]
[1733245099603,1.18319167,3557.9,3557.5,0.2]
[1733245099795,0.25793767,3557.8,3557.5,0.2]
[1733245100039,0.25793767,3557.7,3557.5,3.01093]
[1733245100286,0.41269167,3558.0,3557.7,0.2]
[1733245100553,0.25793343,3557.9,3557.7,0.2]
[1733245100695,0.7705,3558.3,3557.7,0.2]
[1733245100893,0.25796767,3558.2,3557.7,0.2]
[1733245101198,0.67065934,3558.1,3557.7,0.2]
[1733245101509,0.25796767,3558.0,3557.7,0.2]
[1733245101844,0.25796767,3557.9,3557.7,0.2]
[1733245101997,0.41269167,3558.2,3557.7,0.2]
[1733245102202,0.2579568,3558.1,3557.7,0.2]
[1733245102495,0.7705,3558.3,3557.7,0.21431806]
[1733245102729,0.25795594,3558.2,3558.0,0.2]
[1733245102894,0.24522849,3558.1,3557.6,0.2]
[1733245103094,0.7705,3558.3,3557.6,3.01085]
[1733245103326,0.7705,3558.3,3557.8,0.2]
[1733245103530,0.7705,3558.3,3557.6,3.01085]
[1733245103738,0.7705,3558.3,3558.0,0.2]
[1733245104646,1.23909167,3558.6,3558.0,0.2]
[1733245104941,0.8264,3558.6,3558.0,0.2]
[1733245105311,1.64399484,3558.6,3558.0,0.2]
[1733245105639,1.23130317,3558.6,3558.0,0.2]
[1733245105853,1.64399484,3558.6,3558.0,0.2]
[1733245106001,0.8106,3558.5,3558.0,0.2]
[1733245107098,0.8106,3558.5,3557.8,0.2]
[1733245108269,0.8083,3558.3,3557.6,0.2]
[1733245108970,2.81049,3558.1,3557.6,0.2]
[1733245109143,4.03135167,3558.3,3557.6,0.2]
[1733245109349,1.22099167,3558.3,3557.6,0.2]
[1733245109568,0.8083,3558.3,3557.6,0.2]
[1733245110034,0.8083,3558.3,3557.6,3.01082]
[1733245110228,0.8083,3558.3,3557.7,0.01431848]
[1733245110465,0.8083,3558.3,3558.1,0.2]
[1733245110670,0.7824,3558.6,3558.1,0.2]
[1733245111041,0.81752899,3558.6,3557.9,0.2]
[1733245111377,0.7824,3558.3,3557.7,0.2]
[1733245112158,0.29350736,3558.2,3557.7,0.2]
[1733245114878,0.25806663,3558.1,3557.7,0.2]
[1733245115039,0.29350736,3558.2,3557.7,0.2]
[1733245115416,0.25822934,3558.1,3557.9,0.2]
[1733245115573,0.29350736,3558.2,3557.9,0.2]
[1733245116288,0.25841595,3558.1,3557.9,0.2]
[1733245116436,0.25841595,3558.0,3557.9,3.0106]
[1733245116635,0.29350736,3558.2,3558.1,0.2]
[1733245116965,0.96535751,3558.2,3558.1,0.2]
[1733245117271,0.96535033,3558.2,3558.1,0.2]
[1733245117845,0.55192631,3558.2,3558.1,3.01048]
[1733245118057,0.55192631,3558.2,3558.1,3.672525]
[1733245118838,0.96571255,3558.2,3558.1,3.672525]
[1733245119043,0.55192631,3558.2,3558.1,3.672525]
[1733245119452,0.29350736,3558.2,3558.1,3.672525]
[1733245120046,0.55214252,3558.2,3558.1,3.672525]
[1733245120262,0.29350736,3558.2,3558.1,3.672525]
[1733245120745,0.55213061,3558.2,3558.1,3.672525]
[1733245122003,0.55213061,3558.2,3558.1,0.2]